[Event "Late-Titled-Tuesday-Blitz-October-24-2023"]
[Site "Chess.com"]
[Date "2023.10.24"]
[Round "7"]
[White "rikchessmx"]
[Black "Kombinator01"]
[Result "0-1"]
[WhiteElo "2281"]
[BlackElo "2422"]
[TimeControl "180+1"]
[EndTime "15:16:38 PDT"]
[Termination "Kombinator01 won by checkmate"]

1. e4 {[%clk 0:03:00.9]} 1... e5 {[%clk 0:03:00.6]} 2. Nf3 {[%clk 0:03:00.6]}
2... Nf6 {[%clk 0:03:01.3]} 3. Bc4 {[%clk 0:03:00.2]} 3... Nxe4 {[%clk
0:03:01.4]} 4. d3 {[%clk 0:03:00.1]} 4... Nf6 {[%clk 0:03:00.1]} 5. Nxe5 {[%clk
0:03:00.2]} 5... d5 {[%clk 0:03:00.6]} 6. Bb3 {[%clk 0:02:59.5]} 6... Bd6 {[%clk
0:03:00.5]} 7. d4 {[%clk 0:02:59.1]} 7... Nbd7 {[%clk 0:02:59.5]} 8. f4 {[%clk
0:02:58.6]} 8... c5 {[%clk 0:02:52.2]} 9. c3 {[%clk 0:02:57.9]} 9... O-O {[%clk
0:02:29]} 10. O-O {[%clk 0:02:55.1]} 10... Qb6 {[%clk 0:02:25.7]} 11. Kh1 {[%clk
0:02:54.7]} 11... a5 {[%clk 0:02:24.4]} 12. Bc2 {[%clk 0:02:49.2]} 12... Ne4
{[%clk 0:02:09.8]} 13. dxc5 {[%clk 0:02:48.4]} 13... Qxc5 {[%clk 0:02:01.3]} 14.
Nd3 {[%clk 0:02:22.7]} 14... Qb6 {[%clk 0:01:54.8]} 15. Qf3 {[%clk 0:02:17.4]}
15... Ndf6 {[%clk 0:01:53.3]} 16. Be3 {[%clk 0:02:17.3]} 16... Qa6 {[%clk
0:01:49.2]} 17. Nd2 {[%clk 0:02:13.3]} 17... Bf5 {[%clk 0:01:49.4]} 18. Nb3
{[%clk 0:02:05.8]} 18... Bg4 {[%clk 0:01:34.9]} 19. Ndc5 {[%clk 0:01:51.6]}
19... Bxc5 {[%clk 0:01:16.9]} 20. Nxc5 {[%clk 0:01:50.9]} 20... Nxc5 {[%clk
0:01:13.6]} 21. Qg3 {[%clk 0:01:45]} 21... Nce4 {[%clk 0:01:11.4]} 22. Qh4
{[%clk 0:01:44.3]} 22... Qe2 {[%clk 0:01:05]} 23. Bxe4 {[%clk 0:01:41.1]} 23...
Qxe3 {[%clk 0:00:52]} 24. Rae1 {[%clk 0:01:35.3]} 24... Qd2 {[%clk 0:00:52.4]}
25. Bxh7+ {[%clk 0:01:29]} 25... Nxh7 {[%clk 0:00:53.3]} 26. Qxg4 {[%clk
0:01:29]} 26... Rae8 {[%clk 0:00:52.9]} 27. Rd1 {[%clk 0:01:28.4]} 27... Qxb2
{[%clk 0:00:46.7]} 28. Rxd5 {[%clk 0:01:25.1]} 28... Qe2 {[%clk 0:00:46.9]} 29.
Qxe2 {[%clk 0:01:21.9]} 29... Rxe2 {[%clk 0:00:47.8]} 30. Rxa5 {[%clk
0:01:21.5]} 30... Rc8 {[%clk 0:00:44.2]} 31. Rb5 {[%clk 0:01:19.3]} 31... Rc7
{[%clk 0:00:42.5]} 32. h3 {[%clk 0:01:14.7]} 32... Nf6 {[%clk 0:00:42.8]} 33.
Rfb1 {[%clk 0:01:13.5]} 33... Rxa2 {[%clk 0:00:39.1]} 34. Rxb7 {[%clk
0:01:13.2]} 34... Rxb7 {[%clk 0:00:39.4]} 35. Rxb7 {[%clk 0:01:13.7]} 35... Nd5
{[%clk 0:00:38.5]} 36. f5 {[%clk 0:01:04.5]} 36... Nxc3 {[%clk 0:00:34.5]} 37.
Kh2 {[%clk 0:01:04.4]} 37... Ne4 {[%clk 0:00:32.3]} 38. Re7 {[%clk 0:01:03.2]}
38... Nf6 {[%clk 0:00:30.1]} 39. Kg3 {[%clk 0:00:59.6]} 39... Ra5 {[%clk
0:00:27.9]} 40. Kh4 {[%clk 0:00:50.5]} 40... Rxf5 {[%clk 0:00:26.7]} 41. g4
{[%clk 0:00:51]} 41... Ra5 {[%clk 0:00:23.8]} 42. Re3 {[%clk 0:00:50.4]} 42...
g5+ {[%clk 0:00:22.4]} 43. Kg3 {[%clk 0:00:49.8]} 43... Kg7 {[%clk 0:00:22.4]}
44. h4 {[%clk 0:00:47.8]} 44... Ra4 {[%clk 0:00:16.9]} 45. hxg5 {[%clk
0:00:47.2]} 45... Rxg4+ {[%clk 0:00:17.3]} 46. Kh3 {[%clk 0:00:47.5]} 46... Rxg5
{[%clk 0:00:17.9]} 47. Ra3 {[%clk 0:00:46.9]} 47... Rg6 {[%clk 0:00:18.1]} 48.
Ra5 {[%clk 0:00:44.6]} 48... Ng8 {[%clk 0:00:16.5]} 49. Kh4 {[%clk 0:00:43.7]}
49... Ne7 {[%clk 0:00:16.4]} 50. Rb5 {[%clk 0:00:42.6]} 50... f5 {[%clk
0:00:15.8]} 51. Rb7 {[%clk 0:00:41.9]} 51... Kf7 {[%clk 0:00:15.9]} 52. Kh5
{[%clk 0:00:42.4]} 52... Rg1 {[%clk 0:00:15.5]} 53. Ra7 {[%clk 0:00:41.7]} 53...
Kf6 {[%clk 0:00:14.2]} 54. Ra6+ {[%clk 0:00:40.9]} 54... Ke5 {[%clk 0:00:14.2]}
55. Ra5+ {[%clk 0:00:41.3]} 55... Nd5 {[%clk 0:00:14.4]} 56. Ra8 {[%clk
0:00:39.6]} 56... Nf4+ {[%clk 0:00:14.4]} 57. Kh6 {[%clk 0:00:39.3]} 57... Rg6+
{[%clk 0:00:14]} 58. Kh7 {[%clk 0:00:39.1]} 58... Rg1 {[%clk 0:00:13.2]} 59. Ra4
{[%clk 0:00:37.8]} 59... Ne6 {[%clk 0:00:13]} 60. Ra5+ {[%clk 0:00:37.4]} 60...
Kf6 {[%clk 0:00:13.2]} 61. Ra6 {[%clk 0:00:36.5]} 61... f4 {[%clk 0:00:13.3]}
62. Ra3 {[%clk 0:00:33.9]} 62... Ng5+ {[%clk 0:00:10.1]} 63. Kg8 {[%clk
0:00:33.1]} 63... f3 {[%clk 0:00:09.7]} 64. Kf8 {[%clk 0:00:29.9]} 64... f2
{[%clk 0:00:08.3]} 65. Ra6+ {[%clk 0:00:28.3]} 65... Kf5 {[%clk 0:00:07.9]} 66.
Ra5+ {[%clk 0:00:28.6]} 66... Kf4 {[%clk 0:00:06.8]} 67. Ra4+ {[%clk 0:00:29]}
67... Ne4 {[%clk 0:00:07.1]} 68. Ra7 {[%clk 0:00:26.5]} 68... f1=Q {[%clk
0:00:07.1]} 69. Rf7+ {[%clk 0:00:27]} 69... Ke3 {[%clk 0:00:07.4]} 70. Rxf1
{[%clk 0:00:27]} 70... Rxf1+ {[%clk 0:00:08]} 71. Ke7 {[%clk 0:00:27.8]} 71...
Rf6 {[%clk 0:00:07.4]} 72. Kd7 {[%clk 0:00:27.1]} 72... Kd4 {[%clk 0:00:07.7]}
73. Ke7 {[%clk 0:00:28]} 73... Ra6 {[%clk 0:00:07.3]} 74. Kd8 {[%clk 0:00:26.7]}
74... Ra7 {[%clk 0:00:06.8]} 75. Kc8 {[%clk 0:00:26.6]} 75... Ng3 {[%clk
0:00:07.3]} 76. Kb8 {[%clk 0:00:27.5]} 76... Rh7 {[%clk 0:00:07.4]} 77. Kc8
{[%clk 0:00:27.8]} 77... Nh1 {[%clk 0:00:08]} 78. Kd8 {[%clk 0:00:28.7]} 78...
Ke5 {[%clk 0:00:08.2]} 79. Ke8 {[%clk 0:00:29.6]} 79... Kf6 {[%clk 0:00:08.5]}
80. Kf8 {[%clk 0:00:30.5]} 80... Rh8# {[%clk 0:00:07.8]} 0-1

[Event "Late-Titled-Tuesday-Blitz-October-24-2023"]
[Site "Chess.com"]
[Date "2023.10.24"]
[Round "7"]
[White "tteshan"]
[Black "AsselLesbekova"]
[Result "1-0"]
[WhiteElo "2514"]
[BlackElo "2303"]
[TimeControl "180+1"]
[EndTime "15:16:39 PDT"]
[Termination "tteshan won by resignation"]

1. e4 {[%clk 0:03:00.9]} 1... e5 {[%clk 0:03:00.1]} 2. Nf3 {[%clk 0:03:00.8]}
2... Nf6 {[%clk 0:03:00.8]} 3. Nxe5 {[%clk 0:02:58.7]} 3... Nxe4 {[%clk
0:03:00.5]} 4. Qe2 {[%clk 0:02:57.4]} 4... Qe7 {[%clk 0:03:00.5]} 5. Nf3 {[%clk
0:02:55.4]} 5... Nc6 {[%clk 0:02:54.5]} 6. d3 {[%clk 0:02:55.5]} 6... Nf6 {[%clk
0:02:50.2]} 7. Nc3 {[%clk 0:02:55.3]} 7... a6 {[%clk 0:02:34.1]} 8. Bg5 {[%clk
0:02:54.5]} 8... Qxe2+ {[%clk 0:02:32.9]} 9. Bxe2 {[%clk 0:02:55.4]} 9... Be7
{[%clk 0:02:33.2]} 10. O-O-O {[%clk 0:02:55.9]} 10... h6 {[%clk 0:02:32.6]} 11.
Bh4 {[%clk 0:02:55.6]} 11... g5 {[%clk 0:02:29.9]} 12. Bg3 {[%clk 0:02:55.8]}
12... d6 {[%clk 0:02:28.4]} 13. d4 {[%clk 0:02:55]} 13... Nh5 {[%clk 0:02:14.9]}
14. d5 {[%clk 0:02:53.4]} 14... Nxg3 {[%clk 0:02:13.4]} 15. hxg3 {[%clk
0:02:53]} 15... Ne5 {[%clk 0:02:13.2]} 16. Nd4 {[%clk 0:02:40.2]} 16... g4
{[%clk 0:01:57.1]} 17. Kb1 {[%clk 0:02:35.6]} 17... Bd7 {[%clk 0:01:53.4]} 18.
Rh5 {[%clk 0:02:24.7]} 18... O-O-O {[%clk 0:01:47.7]} 19. Rdh1 {[%clk
0:02:24.1]} 19... Bf8 {[%clk 0:01:37.4]} 20. Ne4 {[%clk 0:02:11.4]} 20... Bg7
{[%clk 0:01:34.8]} 21. Nf5 {[%clk 0:02:08.3]} 21... Bxf5 {[%clk 0:01:32]} 22.
Rxf5 {[%clk 0:02:09.2]} 22... Rde8 {[%clk 0:01:22.9]} 23. c3 {[%clk 0:01:58.7]}
23... Re7 {[%clk 0:00:58.6]} 24. f4 {[%clk 0:01:47.3]} 24... gxf3 {[%clk
0:00:54.7]} 25. gxf3 {[%clk 0:01:47.7]} 25... Nd7 {[%clk 0:00:51.1]} 26. Bd3
{[%clk 0:01:43.7]} 26... Nc5 {[%clk 0:00:46.7]} 27. Nxc5 {[%clk 0:01:38.7]}
27... dxc5 {[%clk 0:00:47.6]} 28. Be4 {[%clk 0:01:37.6]} 28... Rd8 {[%clk
0:00:35.2]} 29. Kc2 {[%clk 0:01:36.4]} 29... Rd6 {[%clk 0:00:35.1]} 30. g4
{[%clk 0:01:23.6]} 30... b5 {[%clk 0:00:34.7]} 31. a4 {[%clk 0:01:22.1]} 31...
b4 {[%clk 0:00:32.4]} 32. a5 {[%clk 0:01:18.5]} 32... Kd7 {[%clk 0:00:25.2]} 33.
Kb3 {[%clk 0:01:13.3]} 33... bxc3 {[%clk 0:00:22.3]} 34. bxc3 {[%clk 0:01:14.2]}
34... Ke8 {[%clk 0:00:19.7]} 35. Kc4 {[%clk 0:01:13.2]} 35... Kf8 {[%clk
0:00:16.3]} 36. Rb1 {[%clk 0:01:12.8]} 36... Re8 {[%clk 0:00:16]} 37. Rb7 {[%clk
0:01:11.2]} 37... Rc8 {[%clk 0:00:15.4]} 38. Rf4 {[%clk 0:00:51.4]} 38... Be5
{[%clk 0:00:12.2]} 39. Rf5 {[%clk 0:00:48.3]} 39... Bg3 {[%clk 0:00:08.1]} 40.
Kxc5 {[%clk 0:00:43.2]} 40... Be1 {[%clk 0:00:08.2]} 41. Kd4 {[%clk 0:00:35.3]}
41... Kg7 {[%clk 0:00:08.1]} 42. c4 {[%clk 0:00:32.4]} 42... Bf2+ {[%clk
0:00:08.3]} 43. Kd3 {[%clk 0:00:31.5]} 43... Bc5 {[%clk 0:00:08.3]} 44. Re5
{[%clk 0:00:28.4]} 44... Rf6 {[%clk 0:00:08]} 45. Bf5 {[%clk 0:00:26.6]} 45...
Rh8 {[%clk 0:00:06.1]} 46. Re2 {[%clk 0:00:24.9]} 46... h5 {[%clk 0:00:06.3]}
47. Rxc7 {[%clk 0:00:24]} 47... Bd6 {[%clk 0:00:06.6]} 48. Rb7 {[%clk
0:00:22.3]} 48... hxg4 {[%clk 0:00:07.3]} 49. fxg4 {[%clk 0:00:20.5]} 49... Rh3+
{[%clk 0:00:07.3]} 50. Re3 {[%clk 0:00:20.8]} 50... Rh1 {[%clk 0:00:05.2]} 51.
Re2 {[%clk 0:00:14.8]} 51... Rfh6 {[%clk 0:00:05.6]} 52. g5 {[%clk 0:00:11.5]}
52... Rd1+ {[%clk 0:00:04.3]} 53. Kc2 {[%clk 0:00:10.7]} 53... Rhh1 {[%clk
0:00:05.2]} 54. g6 {[%clk 0:00:08.7]} 54... Rc1+ {[%clk 0:00:05.5]} 55. Kb2
{[%clk 0:00:06.1]} 55... Bc5 {[%clk 0:00:03.6]} 56. Rxf7+ {[%clk 0:00:05.8]}
56... Kh6 {[%clk 0:00:03.6]} 57. Rh7+ {[%clk 0:00:05.9]} 57... Kg5 {[%clk
0:00:04.2]} 58. Rxh1 {[%clk 0:00:06.5]} 58... Rxh1 {[%clk 0:00:04]} 59. g7
{[%clk 0:00:06.9]} 59... Bd4+ {[%clk 0:00:04.2]} 60. Kc2 {[%clk 0:00:06.6]}
60... Bxg7 {[%clk 0:00:05.1]} 61. Be6 {[%clk 0:00:06.6]} 61... Rh4 {[%clk
0:00:04.8]} 62. Rg2+ {[%clk 0:00:06.6]} 62... Kf6 {[%clk 0:00:04.8]} 63. Kb3
{[%clk 0:00:05.4]} 63... Ke5 {[%clk 0:00:04.8]} 64. Rxg7 {[%clk 0:00:05.4]}
64... Rh3+ {[%clk 0:00:05.3]} 65. Kb4 {[%clk 0:00:05.6]} 1-0

[Event "Late-Titled-Tuesday-Blitz-October-24-2023"]
[Site "Chess.com"]
[Date "2023.10.24"]
[Round "7"]
[White "Duhless"]
[Black "Fandorine"]
[Result "1/2-1/2"]
[WhiteElo "3122"]
[BlackElo "2939"]
[TimeControl "180+1"]
[EndTime "15:16:40 PDT"]
[Termination "Game drawn - insufficient material"]

1. d4 {[%clk 0:03:00.9]} 1... Nf6 {[%clk 0:02:50.2]} 2. Nf3 {[%clk 0:03:00.8]}
2... g6 {[%clk 0:02:48.7]} 3. c4 {[%clk 0:03:00.9]} 3... Bg7 {[%clk 0:02:48.5]}
4. Nc3 {[%clk 0:03:01.6]} 4... d5 {[%clk 0:02:46.6]} 5. Bg5 {[%clk 0:02:57.7]}
5... Ne4 {[%clk 0:02:38.9]} 6. Bf4 {[%clk 0:02:57.7]} 6... Nxc3 {[%clk
0:02:37.9]} 7. bxc3 {[%clk 0:02:58.6]} 7... c5 {[%clk 0:02:38.3]} 8. e3 {[%clk
0:02:59.3]} 8... O-O {[%clk 0:02:38.1]} 9. cxd5 {[%clk 0:02:57.6]} 9... Qxd5
{[%clk 0:02:37.4]} 10. Be2 {[%clk 0:02:58.3]} 10... Nc6 {[%clk 0:02:25.2]} 11.
O-O {[%clk 0:02:57.9]} 11... cxd4 {[%clk 0:02:25.2]} 12. exd4 {[%clk 0:02:57.9]}
12... Qa5 {[%clk 0:02:20.6]} 13. d5 {[%clk 0:02:49.8]} 13... Nb8 {[%clk
0:02:15.9]} 14. c4 {[%clk 0:02:47.1]} 14... Na6 {[%clk 0:02:14.1]} 15. Be5
{[%clk 0:02:43.1]} 15... Qc5 {[%clk 0:02:01.7]} 16. Bxg7 {[%clk 0:02:35.6]}
16... Kxg7 {[%clk 0:02:02.6]} 17. Nd4 {[%clk 0:02:20.7]} 17... e5 {[%clk
0:01:52]} 18. dxe6 {[%clk 0:02:14.4]} 18... Bxe6 {[%clk 0:01:46.3]} 19. Nxe6+
{[%clk 0:02:13.4]} 19... fxe6 {[%clk 0:01:47.2]} 20. Qd7+ {[%clk 0:02:00.4]}
20... Rf7 {[%clk 0:01:46.7]} 21. Qxe6 {[%clk 0:02:00.6]} 21... Re7 {[%clk
0:01:20]} 22. Qg4 {[%clk 0:02:00.2]} 22... h5 {[%clk 0:01:13.1]} 23. Qf3 {[%clk
0:02:00]} 23... Rf8 {[%clk 0:01:13.8]} 24. Qc3+ {[%clk 0:01:59.4]} 24... Qe5
{[%clk 0:01:14.5]} 25. Qxe5+ {[%clk 0:01:59.1]} 25... Rxe5 {[%clk 0:01:15.4]}
26. Bf3 {[%clk 0:01:55.6]} 26... b6 {[%clk 0:01:15.8]} 27. Rfd1 {[%clk
0:01:45.3]} 27... Nc5 {[%clk 0:01:12.4]} 28. Rd4 {[%clk 0:01:37.9]} 28... Rfe8
{[%clk 0:01:05]} 29. Kf1 {[%clk 0:01:34.2]} 29... R8e7 {[%clk 0:01:05.6]} 30.
Rad1 {[%clk 0:01:32.5]} 30... Na4 {[%clk 0:01:01.7]} 31. Rd7 {[%clk 0:01:08.1]}
31... Nc3 {[%clk 0:00:55.7]} 32. Rxe7+ {[%clk 0:01:07.7]} 32... Rxe7 {[%clk
0:00:55.3]} 33. Rd2 {[%clk 0:01:07.3]} 33... Rc7 {[%clk 0:00:54]} 34. a3 {[%clk
0:00:47.8]} 34... Na4 {[%clk 0:00:19.5]} 35. Rd4 {[%clk 0:00:41.9]} 35... Nc5
{[%clk 0:00:20.2]} 36. Bd1 {[%clk 0:00:24.2]} 36... Rd7 {[%clk 0:00:10]} 37.
Rxd7+ {[%clk 0:00:23]} 37... Nxd7 {[%clk 0:00:10.9]} 38. f4 {[%clk 0:00:20.7]}
38... h4 {[%clk 0:00:09.3]} 39. Kf2 {[%clk 0:00:19]} 39... Kf6 {[%clk
0:00:09.6]} 40. Ke3 {[%clk 0:00:19.2]} 40... g5 {[%clk 0:00:09]} 41. g3 {[%clk
0:00:10.9]} 41... hxg3 {[%clk 0:00:07.8]} 42. fxg5+ {[%clk 0:00:08.9]} 42...
Kxg5 {[%clk 0:00:07.1]} 43. hxg3 {[%clk 0:00:09.8]} 43... Ne5 {[%clk 0:00:03.4]}
44. Kd4 {[%clk 0:00:08.8]} 44... Nc6+ {[%clk 0:00:02.5]} 45. Kd5 {[%clk
0:00:08.6]} 45... Ne7+ {[%clk 0:00:02.6]} 46. Kd6 {[%clk 0:00:06.3]} 46... Nf5+
{[%clk 0:00:03.1]} 47. Kc6 {[%clk 0:00:06.5]} 47... Nxg3 {[%clk 0:00:03.2]} 48.
Kb7 {[%clk 0:00:06.8]} 48... Ne4 {[%clk 0:00:03]} 49. Kxa7 {[%clk 0:00:06.6]}
49... Nd2 {[%clk 0:00:03.3]} 50. Be2 {[%clk 0:00:05.3]} 50... Nb1 {[%clk
0:00:03.5]} 51. Kxb6 {[%clk 0:00:04]} 51... Nxa3 {[%clk 0:00:04]} 52. c5 {[%clk
0:00:04.8]} 52... Nc2 {[%clk 0:00:04.7]} 53. Bc4 {[%clk 0:00:02.2]} 53... Nd4
{[%clk 0:00:04.7]} 54. Kc7 {[%clk 0:00:01.3]} 54... Kf5 {[%clk 0:00:04]} 55. Kd6
{[%clk 0:00:01.8]} 55... Ke4 {[%clk 0:00:04.2]} 56. Bd5+ {[%clk 0:00:01.8]}
56... Kd3 {[%clk 0:00:03.8]} 57. Ke5 {[%clk 0:00:02.2]} 57... Kc3 {[%clk
0:00:03.4]} 58. Ke4 {[%clk 0:00:02.6]} 58... Nb5 {[%clk 0:00:03]} 59. c6 {[%clk
0:00:02.5]} 59... Kb4 {[%clk 0:00:03]} 60. Ke5 {[%clk 0:00:02.8]} 60... Kc5
{[%clk 0:00:03.3]} 61. Be4 {[%clk 0:00:03.5]} 61... Kb6 {[%clk 0:00:02.8]} 62.
Bf3 {[%clk 0:00:03.6]} 62... Na7 {[%clk 0:00:02.7]} 63. Kd6 {[%clk 0:00:03.8]}
63... Nxc6 {[%clk 0:00:03]} 1/2-1/2

[Event "Late-Titled-Tuesday-Blitz-October-24-2023"]
[Site "Chess.com"]
[Date "2023.10.24"]
[Round "7"]
[White "ural58"]
[Black "HaryKane"]
[Result "1/2-1/2"]
[WhiteElo "2509"]
[BlackElo "2515"]
[TimeControl "180+1"]
[EndTime "15:16:44 PDT"]
[Termination "Game drawn - insufficient material"]

1. e4 {[%clk 0:02:41.4]} 1... e5 {[%clk 0:02:55.2]} 2. Nf3 {[%clk 0:02:40.7]}
2... Nc6 {[%clk 0:02:55.5]} 3. Bc4 {[%clk 0:02:41]} 3... Bc5 {[%clk 0:02:54.6]}
4. b4 {[%clk 0:02:41.1]} 4... Bb6 {[%clk 0:02:54.3]} 5. a4 {[%clk 0:02:39.8]}
5... a6 {[%clk 0:02:52.3]} 6. d3 {[%clk 0:02:37.2]} 6... Nf6 {[%clk 0:02:49.1]}
7. Bb2 {[%clk 0:02:33]} 7... d6 {[%clk 0:02:48.2]} 8. Qd2 {[%clk 0:02:30.1]}
8... O-O {[%clk 0:02:45]} 9. O-O {[%clk 0:02:29.9]} 9... Re8 {[%clk 0:02:44.2]}
10. b5 {[%clk 0:02:26.3]} 10... axb5 {[%clk 0:02:41.9]} 11. axb5 {[%clk
0:02:26.4]} 11... Rxa1 {[%clk 0:02:41.7]} 12. Bxa1 {[%clk 0:02:26.3]} 12... Ne7
{[%clk 0:02:41.5]} 13. Ng5 {[%clk 0:02:16.8]} 13... Rf8 {[%clk 0:02:40]} 14. d4
{[%clk 0:02:11.8]} 14... exd4 {[%clk 0:02:31.9]} 15. Bxd4 {[%clk 0:02:10.9]}
15... Bxd4 {[%clk 0:02:32.5]} 16. Qxd4 {[%clk 0:02:10.9]} 16... h6 {[%clk
0:02:31.7]} 17. Nxf7 {[%clk 0:02:07.2]} 17... Rxf7 {[%clk 0:02:30.1]} 18. Bxf7+
{[%clk 0:02:07.6]} 18... Kxf7 {[%clk 0:02:31]} 19. e5 {[%clk 0:02:07.9]} 19...
Nf5 {[%clk 0:02:17.8]} 20. Qd3 {[%clk 0:01:58.8]} 20... Ng4 {[%clk 0:02:10.7]}
21. exd6 {[%clk 0:01:55.8]} 21... Nxd6 {[%clk 0:02:02]} 22. Nc3 {[%clk
0:01:46.6]} 22... Qh4 {[%clk 0:01:53.9]} 23. h3 {[%clk 0:01:46.1]} 23... Nf6
{[%clk 0:01:53.3]} 24. b6 {[%clk 0:01:40.9]} 24... Bf5 {[%clk 0:01:38.1]} 25.
Qd1 {[%clk 0:01:40.6]} 25... Qc4 {[%clk 0:01:34.4]} 26. bxc7 {[%clk 0:01:38.8]}
26... Qxc7 {[%clk 0:01:29.6]} 27. Qd2 {[%clk 0:01:26]} 27... Nde4 {[%clk
0:01:17.7]} 28. Nxe4 {[%clk 0:01:25.9]} 28... Bxe4 {[%clk 0:01:18.6]} 29. c3
{[%clk 0:01:15]} 29... Qc6 {[%clk 0:01:15.3]} 30. f3 {[%clk 0:01:14.7]} 30...
Bd5 {[%clk 0:01:15.1]} 31. Rd1 {[%clk 0:01:11.2]} 31... b5 {[%clk 0:01:14.8]}
32. Qd4 {[%clk 0:01:06]} 32... Be6 {[%clk 0:01:06.5]} 33. Qa7+ {[%clk
0:01:03.4]} 33... Kg6 {[%clk 0:01:03.6]} 34. Qd4 {[%clk 0:01:02.5]} 34... Kh7
{[%clk 0:00:58.2]} 35. Rb1 {[%clk 0:01:02.3]} 35... Bc4 {[%clk 0:00:53.2]} 36.
Re1 {[%clk 0:00:59.1]} 36... Bf7 {[%clk 0:00:50.8]} 37. Re7 {[%clk 0:00:57.6]}
37... Bg6 {[%clk 0:00:47]} 38. Re5 {[%clk 0:00:54.5]} 38... Bf7 {[%clk
0:00:39.5]} 39. Qd3+ {[%clk 0:00:54.3]} 39... Bg6 {[%clk 0:00:35.7]} 40. Qd4
{[%clk 0:00:47.6]} 40... Qc4 {[%clk 0:00:32.2]} 41. Qxc4 {[%clk 0:00:43.2]}
41... bxc4 {[%clk 0:00:33.1]} 42. Kf2 {[%clk 0:00:43.1]} 42... Bd3 {[%clk
0:00:31.5]} 43. Ke3 {[%clk 0:00:40.5]} 43... Kg6 {[%clk 0:00:31.9]} 44. h4
{[%clk 0:00:37]} 44... Kf7 {[%clk 0:00:31.9]} 45. g4 {[%clk 0:00:35.8]} 45...
Nd7 {[%clk 0:00:31.4]} 46. Rb5 {[%clk 0:00:34.4]} 46... Ke6 {[%clk 0:00:29.6]}
47. f4 {[%clk 0:00:33.7]} 47... Nf6 {[%clk 0:00:26.6]} 48. f5+ {[%clk 0:00:26]}
48... Kd6 {[%clk 0:00:22.1]} 49. g5 {[%clk 0:00:20.5]} 49... hxg5 {[%clk
0:00:19.7]} 50. hxg5 {[%clk 0:00:21.2]} 50... Nd5+ {[%clk 0:00:20.3]} 51. Kd4
{[%clk 0:00:21.4]} 51... Ne7 {[%clk 0:00:18.3]} 52. f6 {[%clk 0:00:13.6]} 52...
gxf6 {[%clk 0:00:17.9]} 53. gxf6 {[%clk 0:00:13]} 53... Nc6+ {[%clk 0:00:18.4]}
54. Ke3 {[%clk 0:00:12.5]} 54... Ne5 {[%clk 0:00:17.2]} 55. Rb7 {[%clk
0:00:09.5]} 55... Ke6 {[%clk 0:00:17.2]} 56. Kd4 {[%clk 0:00:08.3]} 56... Nf7
{[%clk 0:00:15.5]} 57. Rb6+ {[%clk 0:00:07.1]} 57... Kf5 {[%clk 0:00:15.8]} 58.
Kc5 {[%clk 0:00:05.7]} 58... Ke5 {[%clk 0:00:14.4]} 59. Ra6 {[%clk 0:00:05.4]}
59... Ng5 {[%clk 0:00:13.8]} 60. Rb6 {[%clk 0:00:02.3]} 60... Ne6+ {[%clk
0:00:13.1]} 61. Kb4 {[%clk 0:00:02.6]} 61... Kxf6 {[%clk 0:00:13.3]} 62. Rc6
{[%clk 0:00:02.3]} 62... Ke5 {[%clk 0:00:10.8]} 63. Rxc4 {[%clk 0:00:02.6]}
63... Nf4 {[%clk 0:00:09.4]} 64. Rc5+ {[%clk 0:00:02.5]} 64... Kd6 {[%clk
0:00:09]} 65. Ra5 {[%clk 0:00:03.4]} 65... Nd5+ {[%clk 0:00:08.5]} 66. Ka3
{[%clk 0:00:02.9]} 66... Nxc3 {[%clk 0:00:07.5]} 67. Ra8 {[%clk 0:00:02.4]}
67... Ke5 {[%clk 0:00:07.1]} 68. Rh8 {[%clk 0:00:03]} 68... Ne4 {[%clk 0:00:07]}
69. Rh5+ {[%clk 0:00:03.5]} 69... Kd4 {[%clk 0:00:07.4]} 70. Rh4 {[%clk
0:00:03.7]} 70... Be2 {[%clk 0:00:07.7]} 71. Rxe4+ {[%clk 0:00:04.1]} 71... Kxe4
{[%clk 0:00:08.6]} 1/2-1/2